[Event "Turkish Super League 2019"]
[Site "Konya"]
[Date "2019.07.26"]
[Round "11"]
[White "Annaberdiyev, Babageldi"]
[Black "Keler, Faruk"]
[Result "1/2-1/2"]
[ECO "D31"]
[WhiteElo "2244"]
[BlackElo "2263"]
[Annotator "NA"]
[PlyCount "105"]
[EventDate "2019.07.17"]
[EventType "team-tourn"]
[EventCountry "TUR"]
[SourceTitle "playchess.com"]
[Source "ChessBase"]
[SourceQuality "1"]
[TimeControl "40/5400+30:1800+30"]

1. d4 d5 2. Nf3 Nf6 3. c4 e6 4. e3 a6 5. cxd5 exd5 6. Bd3 Bd6 7. Nc3 O-O 8. Qc2 Re8 9. h3 b6 10. Bd2 Bb7 11. Rd1 c5 12. O-O c4 13. Be2 b5 14. a3 Nbd7 {[%emt 1:04:00]} 15. Nh4 {[%emt 1:02:30]} g6 {[%emt 0:00:30]} 16. f4 {[%emt 0:02:30]} Nh5 {[%emt 0:05:30]} 17. Nf5 {[%emt 0:03:30]} gxf5 {[%emt 0:00:30]} 18. Bxh5 {[%emt 0:01:30]} Qf6 {[%emt 0:02:30]} 19. Bf3 {[%emt 0:00:00]} Nb6 {[%emt 0:00:30]} 20. Ne2 {[%emt 0:01:00]} Bc8 {[%emt 0:02:30]} 21. Ba5 {[%emt 0:01:30]} Rb8 {[%emt 0:00:30]} 22. Nc3 {[%emt 0:01:30]} Be6 {[%emt 0:04:55]} 23. Bxb6 {[%emt 0:00:00]} Rxb6 {[%emt 0:00:05]} 24. Bxd5 {[%emt 0:00:00]} b4 {[%emt 0:09:15]} 25. axb4 {[%emt 0:00:30]} Rxb4 {[%emt 0:00:00]} 26. Bf3 {[%emt 0:02:30]} Reb8 {[%emt 0:00:59]} 27. Rb1 {[%emt 0:02:30]} Rb3 {[%emt 0:02:34]} 28. Kh1 {[%emt 0:05:24]} a5 {[%emt 0:01:43]} 29. Qe2 {[%emt 0:04:25]} Bb4 {[%emt 0:01:41]} 30. Nd5 {[%emt 0:02:29]} Qd8 {[%emt 0:00:09]} 31. Nxb4 {[%emt 0:01:07]} R8xb4 {[%emt 0:00:30]} 32. d5 {[%emt 0:01:42]} Bd7 {[%emt 0:00:24]} 33. Rfd1 {[%emt 0:03:57]} Qb6 {[%emt 0:00:30]} 34. e4 {[%emt 0:00:00]} Re3 {[%emt 0:00:56]} 35. Qf1 {[%emt 0:02:43]} fxe4 {[%emt 0:00:47]} 36. Be2 {[%emt 0:00:00]} Ba4 {[%emt 0:01:51]} 37. Rdc1 {[%emt 0:00:35]} Qd4 {[%emt 0:04:17]} 38. Bxc4 {[%emt 0:00:28]} Bb3 {[%emt 0:00:58]} 39. Bxb3 {[%emt 0:00:42]} Rbxb3 {[%emt 0:00:39]} 40. Rc8+ {[%emt 0:01:11]} Kg7 {[%emt 0:00:00]} 41. f5 {[%emt 0:01:17]} Qe5 {[%emt 0:06:47]} 42. f6+ {[%emt 0:04:30]} Kh6 {[%emt 0:00:30]} 43. Rg8 {[%emt 0:00:30]} Rg3 {[%emt 0:05:30]} 44. Rxg3 {[%emt 0:04:30]} Rxg3 {[%emt 0:02:22]} 45. Rd1 {[%emt 0:07:36]} Rg6 {[%emt 0:06:21]} 46. Qe2 {[%emt 0:06:33]} Rxf6 {[%emt 0:00:40]} 47. d6 {[%emt 0:00:03]} Rxd6 {[%emt 0:00:41]} 48. Rxd6+ {[%emt 0:00:30]} Qxd6 {[%emt 0:00:30]} 49. Qxe4 {[%emt 0:00:00]} Qd1+ {[%emt 0:00:00]} 50. Kh2 {[%emt 0:02:34]} Qd6+ {[%emt 0:01:42]} 51. Kh1 {[%emt 0:00:30]} Qd1+ {[%emt 0:00:30]} 52. Kh2 {[%emt 0:00:30]} Qd6+ {[%emt 0:00:30]} 53. Kh1 {[%emt 0:00:00]} 1/2-1/2

[Event "Turkish Super League 2019"]
[Site "Konya"]
[Date "2019.07.26"]
[Round "11"]
[White "Demircioglu, Emre"]
[Black "Karagollu, Ahmet"]
[Result "1/2-1/2"]
[ECO "E62"]
[WhiteElo "2242"]
[BlackElo "2135"]
[Annotator "NA"]
[PlyCount "68"]
[EventDate "2019.07.17"]
[EventType "team-tourn"]
[EventCountry "TUR"]
[SourceTitle "playchess.com"]
[Source "ChessBase"]
[SourceQuality "1"]
[TimeControl "40/5400+30:1800+30"]

1. Nf3 Nf6 2. g3 g6 3. Bg2 Bg7 4. O-O O-O 5. c4 d6 6. d4 Nc6 7. Nc3 Bg4 8. h3 Bxf3 9. Bxf3 Nd7 10. e3 e5 11. d5 Ne7 12. e4 f5 13. Bg2 Nf6 14. Be3 Qd7 15. Kh2 Rf7 16. Rc1 Raf8 17. b4 f4 18. Bd2 g5 19. Re1 Ng6 20. Qa4 Qd8 21. Rh1 g4 22. Kg1 h5 {[%emt 1:04:00]} 23. h4 {[%emt 1:03:30]} a6 {[%emt 0:00:30]} 24. c5 {[%emt 0:02:30]} Bh6 {[%emt 0:05:30]} 25. Rd1 {[%emt 0:04:30]} Nd7 {[%emt 0:05:30]} 26. c6 {[%emt 0:01:30]} Nb6 {[%emt 0:00:30]} 27. Qb3 {[%emt 0:00:30]} Qf6 {[%emt 0:00:30]} 28. Be1 {[%emt 0:16:57]} fxg3 {[%emt 0:02:30]} 29. fxg3 {[%emt 0:00:30]} Be3+ {[%emt 0:00:30]} 30. Kh2 {[%emt 0:00:28]} Nxh4 {[%emt 0:01:30]} 31. gxh4 {[%emt 0:00:08]} Bf4+ {[%emt 0:05:14]} 32. Kg1 {[%emt 0:00:05]} Be3+ {[%emt 0:01:47]} 33. Kh2 {[%emt 0:00:01]} Bf4+ {[%emt 0:06:37]} 34. Kg1 {[%emt 0:00:17]} Be3+ {[%emt 0:02:27]} 1/2-1/2

[Event "Turkish Super League 2019"]
[Site "Konya"]
[Date "2019.07.26"]
[Round "11"]
[White "Unat, Can Haktan"]
[Black "Cansun, Can Alp"]
[Result "1/2-1/2"]
[ECO "D00"]
[WhiteElo "2034"]
[BlackElo "2121"]
[Annotator "NA"]
[PlyCount "120"]
[EventDate "2019.07.17"]
[EventType "team-tourn"]
[EventCountry "TUR"]
[SourceTitle "playchess.com"]
[Source "ChessBase"]
[SourceQuality "1"]
[TimeControl "40/5400+30:1800+30"]

1. d4 Nf6 2. Nc3 d5 3. Bf4 e6 4. e3 a6 5. Nf3 c5 6. dxc5 Bxc5 7. Bd3 Nc6 8. O-O h6 9. a3 O-O 10. b4 Ba7 11. e4 b5 12. exd5 Nxd5 13. Nxd5 Qxd5 14. Re1 Bb7 15. Be4 Qxd1 16. Raxd1 {[%emt 0:51:00]} Rfd8 {[%emt 1:16:00]} 17. Ne5 {[%emt 0:01:30]} Rxd1 {[%emt 0:06:05]} 18. Rxd1 {[%emt 0:00:00]} Rd8 {[%emt 0:00:50]} 19. Rxd8+ {[%emt 0:00:00]} Nxd8 {[%emt 0:00:30]} 20. Bxb7 {[%emt 0:00:30]} Nxb7 {[%emt 0:00:30]} 21. Nc6 {[%emt 0:00:30]} Bb6 {[%emt 0:00:00]} 22. Nb8 {[%emt 0:02:30]} a5 {[%emt 0:00:20]} 23. Nd7 {[%emt 0:00:00]} Bd4 {[%emt 0:01:15]} 24. Be5 {[%emt 0:18:00]} Bxe5 {[%emt 0:01:00]} 25. Nxe5 {[%emt 0:00:30]} axb4 {[%emt 0:00:30]} 26. axb4 {[%emt 0:00:00]} f6 {[%emt 0:00:00]} 27. Nd3 {[%emt 0:03:00]} e5 {[%emt 0:01:14]} 28. f4 {[%emt 0:06:30]} e4 {[%emt 0:04:12]} 29. Nb2 {[%emt 0:00:30]} Nd6 {[%emt 0:00:15]} 30. Kf2 {[%emt 0:00:00]} Kf7 {[%emt 0:02:23]} 31. Ke3 {[%emt 0:00:00]} Ke6 {[%emt 0:01:53]} 32. Kd4 {[%emt 0:02:25]} f5 {[%emt 0:05:18]} 33. Nd1 {[%emt 0:00:42]} Nc4 {[%emt 0:01:46]} 34. h3 {[%emt 0:13:20]} Kd6 {[%emt 0:01:22]} 35. g4 {[%emt 0:00:42]} g6 {[%emt 0:00:18]} 36. Nf2 {[%emt 0:01:14]} Na3 {[%emt 0:00:56]} 37. Kc3 {[%emt 0:01:02]} Kd5 {[%emt 0:01:10]} 38. Nh1 {[%emt 0:00:04]} Nb1+ {[%emt 0:00:41]} 39. Kb2 {[%emt 0:00:08]} e3 {[%emt 0:00:21]} 40. Ng3 {[%emt 0:00:41]} Nd2 {[%emt 0:00:00]} 41. gxf5 {[%emt 0:02:42]} gxf5 {[%emt 0:00:41]} 42. c3 {[%emt 0:00:00]} Nf3 {[%emt 0:19:11]} 43. Kc2 {[%emt 0:01:00]} Ng1 {[%emt 0:01:03]} 44. h4 {[%emt 0:05:30]} Nh3 {[%emt 0:05:54]} 45. Nxf5 {[%emt 0:17:35]} e2 {[%emt 0:01:03]} 46. Kd2 {[%emt 0:01:15]} Nxf4 {[%emt 0:00:02]} 47. Ng3 {[%emt 0:02:06]} Kc4 {[%emt 0:02:46]} 48. Ne4 {[%emt 0:00:03]} Kd5 {[%emt 0:00:21]} 49. Ng3 {[%emt 0:00:05]} e1=Q+ {[%emt 0:00:51]} 50. Kxe1 {[%emt 0:00:30]} Ng2+ {[%emt 0:00:00]} 51. Ke2 {[%emt 0:01:28]} Nxh4 {[%emt 0:00:05]} 52. Kd3 {[%emt 0:00:51]} Ng6 {[%emt 0:00:44]} 53. Ke3 {[%emt 0:00:47]} Ne5 {[%emt 0:02:05]} 54. Kf4 {[%emt 0:00:27]} Nf7 {[%emt 0:01:03]} 55. Kf5 {[%emt 0:00:35]} Nd6+ {[%emt 0:00:21]} 56. Kg6 {[%emt 0:01:02]} Kc4 {[%emt 0:02:39]} 57. Ne2 {[%emt 0:00:05]} Kd3 {[%emt 0:00:41]} 58. Nd4 {[%emt 0:00:08]} h5 {[%emt 0:00:08]} 59. Kxh5 {[%emt 0:00:30]} Kxc3 {[%emt 0:00:30]} 60. Nxb5+ {[%emt 0:00:30]} Nxb5 {[%emt 0:00:00]} 1/2-1/2

[Event "Turkish Super League 2019"]
[Site "Konya"]
[Date "2019.07.26"]
[Round "11"]
[White "Aydin, Hakan Arda"]
[Black "Heberla, Bartlomiej"]
[Result "0-1"]
[ECO "B80"]
[WhiteElo "1956"]
[BlackElo "2534"]
[Annotator "ChessBase"]
[PlyCount "70"]
[EventDate "2019.07.17"]
[EventType "team-tourn"]
[EventCountry "TUR"]
[SourceTitle "playchess.com"]
[Source "ChessBase"]
[SourceQuality "1"]
[TimeControl "40/5400+30:1800+30"]

1. e4 c5 2. Nf3 e6 3. d4 cxd4 4. Nxd4 Nf6 5. Nc3 d6 6. Bg5 h6 7. Be3 a6 8. f3 b5 9. a3 Bb7 10. Qd2 Nbd7 11. g4 Rc8 12. O-O-O Nb6 13. h4 Nfd7 14. g5 hxg5 15. Bxg5 Qc7 16. Qg2 Ne5 17. Qh3 {[%emt 1:19:11]} Qd7 {[%emt 0:47:30]} 18. f4 {[%emt 0:00:30]} Nec4 {[%emt 0:00:30]} 19. Bxc4 {[%emt 0:00:30]} Nxc4 {[%emt 0:02:30]} 20. f5 {[%emt 0:06:31]} e5 {[%emt 0:00:30]} 21. Ne6 {[%emt 0:03:01]} Nb6 {[%emt 0:11:30]} 22. Rh2 {[%emt 0:04:01]} Rc6 {[%emt 0:25:42]} 23. Rhd2 {[%emt 0:01:59]} f6 {[%emt 0:00:31]} 24. Be3 {[%emt 0:01:22]} Rxc3 {[%emt 0:00:04]} 25. bxc3 {[%emt 0:01:34]} Nc4 {[%emt 0:00:02]} 26. Rd5 {[%emt 0:00:38]} Bxd5 {[%emt 0:01:55]} 27. Rxd5 {[%emt 0:01:18]} g5 {[%emt 0:05:02]} 28. Bf2 {[%emt 0:02:27]} Qc6 {[%emt 0:01:04]} 29. Qg4 {[%emt 0:00:44]} Nxa3 {[%emt 0:00:36]} 30. Rd3 {[%emt 0:00:36]} Qc4 {[%emt 0:00:20]} 31. hxg5 {[%emt 0:00:28]} Qa2 {[%emt 0:00:46]} 32. Kd2 {[%emt 0:00:35]} Qxc2+ {[%emt 0:01:15]} 33. Ke3 {[%emt 0:00:10]} Nc4+ {[%emt 0:00:47]} 34. Kf3 {[%emt 0:00:05]} Rh2 {[%emt 0:01:07]} 35. Nc7+ {[%emt 0:01:16]} Kd7 {[%emt 0:00:17]} 0-1

[Event "Turkish Super League 2019"]
[Site "Konya"]
[Date "2019.07.27"]
[Round "12"]
[White "Tomashevsky, Evgeny"]
[Black "Moiseenko, Vadim"]
[Result "1-0"]
[ECO "D30"]
[WhiteElo "2702"]
[BlackElo "2523"]
[Annotator "ChessBase"]
[PlyCount "102"]
[EventDate "2019.07.17"]
[EventType "team-tourn"]
[EventCountry "TUR"]
[SourceTitle "playchess.com"]
[Source "ChessBase"]
[SourceQuality "1"]
[TimeControl "40/5400+30:1800+30"]

1. d4 d5 2. c4 e6 3. Nf3 c6 4. e3 Nd7 5. Bd3 Bd6 6. O-O Qe7 7. Nc3 Ngf6 8. c5 Bc7 9. e4 dxe4 10. Nxe4 Nxe4 11. Bxe4 O-O 12. Bg5 f6 13. Bh4 Rd8 14. Qb3 Nf8 15. Bg3 Rb8 16. Qa3 a6 17. Rad1 Kh8 18. Rfe1 Bxg3 19. hxg3 Qc7 20. Qc3 b6 21. Nd2 bxc5 22. dxc5 e5 23. Nc4 Rxd1 24. Rxd1 Ne6 25. Nd6 Nd4 26. Rxd4 exd4 27. Qc4 g6 28. Qxd4 Qe7 29. Bxc6 a5 30. a3 Kg7 31. Kh2 Qe5 32. Qxe5 fxe5 33. b4 axb4 34. axb4 Rxb4 35. Nxc8 Rc4 36. Nb6 Rxc5 37. Be4 Kf7 38. g4 Ke6 39. f3 Rb5 40. Nc4 Rc5 41. Nd2 Ra5 42. g5 Ra7 43. Nc4 Ra4 44. Ne3 Ra5 45. Kg3 Kf7 {[%emt 1:23:30]} 46. Bd5+ {[%emt 2:04:10]} Kg7 {[%emt 0:00:30]} 47. Kf2 {[%emt 0:00:30]} h6 {[%emt 0:00:30]} 48. gxh6+ {[%emt 0:00:30]} Kxh6 {[%emt 0:00:30]} 49. Be4 {[%emt 0:00:30]} Kg5 {[%emt 0:01:30]} 50. Kg3 {[%emt 0:01:24]} Ra2 {[%emt 0:01:30]} 51. Ng4 {[%emt 0:01:26]} Ra5 {[%emt 0:00:00]} 1-0

[Event "Turkish Super League 2019"]
[Site "Konya"]
[Date "2019.07.27"]
[Round "12"]
[White "Inarkiev, Ernesto"]
[Black "Dastan, Muhammed Batuhan"]
[Result "0-1"]
[ECO "D15"]
[WhiteElo "2693"]
[BlackElo "2565"]
[Annotator "ChessBase"]
[PlyCount "150"]
[EventDate "2019.07.17"]
[EventType "team-tourn"]
[EventCountry "TUR"]
[SourceTitle "playchess.com"]
[Source "ChessBase"]
[SourceQuality "1"]
[TimeControl "40/5400+30:1800+30"]

1. c4 c6 2. d4 d5 3. Nf3 Nf6 4. e3 a6 5. Nc3 b5 6. b3 Bg4 7. a4 Bxf3 8. gxf3 bxc4 9. bxc4 e6 10. c5 Nbd7 11. a5 e5 12. Qa4 Qc7 13. Na2 exd4 14. exd4 Bxc5 15. Be3 Be7 16. Nb4 Nb8 17. Rc1 O-O 18. Bd3 Qd7 19. Nxc6 Bd6 20. Qc2 Nxc6 21. Qxc6 Qe6 22. Qa4 Qh3 23. Be2 Rab8 24. Qc6 Ba3 25. Bxa6 Rfe8 26. Ke2 Re6 27. Rb1 Rxc6 28. Rxb8+ Bf8 29. Bd3 Nd7 30. Re8 {[%emt 1:43:28]} Nf6 {[%emt 1:42:53]} 31. Rb8 {[%emt 0:00:30]} Qd7 {[%emt 0:00:30]} 32. a6 {[%emt 0:00:30]} Rxa6 {[%emt 0:00:30]} 33. Bxa6 {[%emt 0:00:30]} Qa7 {[%emt 0:00:30]} 34. Rxf8+ {[%emt 0:00:30]} Kxf8 {[%emt 0:00:30]} 35. Bd3 {[%emt 0:00:30]} Qa2+ {[%emt 0:00:30]} 36. Kf1 {[%emt 0:00:30]} Qb3 {[%emt 0:00:30]} 37. Ke2 {[%emt 0:00:30]} Qb2+ {[%emt 0:00:30]} 38. Kf1 {[%emt 0:00:00]} Qa3 {[%emt 0:00:55]} 39. Ke2 {[%emt 0:00:00]} Qd6 {[%emt 0:01:04]} 40. Ra1 {[%emt 0:01:53]} Qb8 {[%emt 0:00:00]} 41. Kf1 {[%emt 0:02:39]} Nh5 {[%emt 0:08:08]} 42. Kg1 {[%emt 0:16:32]} Nf4 {[%emt 0:01:30]} 43. Rb1 {[%emt 0:04:13]} Qd6 {[%emt 0:01:30]} 44. Bxf4 {[%emt 0:00:30]} Qxf4 {[%emt 0:00:00]} 45. Kg2 {[%emt 0:01:08]} Qxd4 {[%emt 0:03:00]} 46. Rb3 {[%emt 0:00:09]} Ke7 {[%emt 0:00:57]} 47. Bf1 {[%emt 0:00:01]} Qf4 {[%emt 0:07:09]} 48. h3 {[%emt 0:00:12]} Kf6 {[%emt 0:00:47]} 49. Re3 {[%emt 0:00:18]} Kg5 {[%emt 0:00:46]} 50. Rd3 {[%emt 0:01:12]} Qe5 {[%emt 0:00:48]} 51. Re3 {[%emt 0:00:00]} Qf5 {[%emt 0:00:00]} 52. Rd3 {[%emt 0:00:00]} Kf4 {[%emt 0:00:54]} 53. Rd4+ {[%emt 0:00:30]} Ke5 {[%emt 0:00:30]} 54. Rd3 {[%emt 0:00:30]} Qg5+ {[%emt 0:00:30]} 55. Kh2 {[%emt 0:00:00]} Kf4 {[%emt 0:03:23]} 56. Be2 {[%emt 0:00:00]} Qe5 {[%emt 0:00:30]} 57. Bf1 {[%emt 0:00:00]} Qd6 {[%emt 0:02:31]} 58. Kg2 {[%emt 0:00:00]} Qg6+ {[%emt 0:00:35]} 59. Kh1 {[%emt 0:00:00]} Qd6 {[%emt 0:01:12]} 60. Kg2 {[%emt 0:01:21]} d4 {[%emt 0:02:16]} 61. Kg1 {[%emt 0:00:30]} Qg6+ {[%emt 0:00:30]} 62. Kh1 {[%emt 0:00:00]} Ke5 {[%emt 0:00:04]} 63. Rb3 {[%emt 0:00:00]} Qc2 {[%emt 0:00:59]} 64. Rb5+ {[%emt 0:00:55]} Kf4 {[%emt 0:00:41]} 65. Kg1 {[%emt 0:00:01]} Kxf3 {[%emt 0:01:07]} 66. Bg2+ {[%emt 0:00:01]} Ke2 {[%emt 0:01:10]} 67. Bf1+ {[%emt 0:00:30]} Kd2 {[%emt 0:00:30]} 68. Rd5 {[%emt 0:00:00]} Qg6+ {[%emt 0:00:28]} 69. Bg2 {[%emt 0:00:31]} d3 {[%emt 0:00:22]} 70. Rd8 {[%emt 0:00:04]} Qf6 {[%emt 0:00:42]} 71. Rd7 {[%emt 0:00:51]} Ke2 {[%emt 0:00:58]} 72. Bf1+ {[%emt 0:03:47]} Ke1 {[%emt 0:00:30]} 73. Bxd3 {[%emt 0:00:00]} Qxf2+ {[%emt 0:00:21]} 74. Kh1 {[%emt 0:00:03]} Qf3+ {[%emt 0:00:30]} 75. Kh2 {[%emt 0:00:00]} Kf2 {[%emt 0:00:00]} 0-1

[Event "Turkish Super League 2019"]
[Site "Konya"]
[Date "2019.07.27"]
[Round "12"]
[White "Firouzja, Alireza"]
[Black "Haznedaroglu, Kivanc"]
[Result "1-0"]
[ECO "C95"]
[WhiteElo "2685"]
[BlackElo "2448"]
[Annotator "ChessBase"]
[PlyCount "79"]
[EventDate "2019.07.17"]
[EventType "team-tourn"]
[EventCountry "TUR"]
[SourceTitle "playchess.com"]
[Source "ChessBase"]
[SourceQuality "1"]
[TimeControl "40/5400+30:1800+30"]

1. e4 e5 2. Nf3 Nc6 3. Bb5 a6 4. Ba4 Nf6 5. O-O Be7 6. Re1 b5 7. Bb3 d6 8. c3 O-O 9. h3 Nb8 10. d4 Nbd7 11. Nbd2 Bb7 12. Bc2 Re8 13. Nf1 Bf8 14. Ng3 g6 15. Bg5 h6 16. Bd2 Bg7 17. Qc1 Kh7 18. h4 c5 19. d5 c4 20. h5 Nc5 21. b4 cxb3 22. axb3 a5 23. b4 axb4 24. Rxa8 Qxa8 25. cxb4 Na4 26. Bd3 Rc8 27. Qa3 Ba6 28. Rc1 Qb7 29. hxg6+ fxg6 30. Ne2 Nd7 31. Nc3 Nxc3 32. Rxc3 Bf6 33. Ne1 {[%emt 1:11:30]} Bd8 {[%emt 1:22:30]} 34. Nc2 {[%emt 0:03:30]} Nb6 {[%emt 0:12:59]} 35. Rc6 {[%emt 0:01:30]} Rxc6 {[%emt 0:06:01]} 36. dxc6 {[%emt 0:00:30]} Qc8 {[%emt 0:00:00]} 37. Ne3 {[%emt 0:02:30]} Na4 {[%emt 0:00:09]} 38. Qa2 {[%emt 0:00:30]} Qc7 {[%emt 0:01:16]} 39. Qe6 {[%emt 0:02:30]} Kg7 {[%emt 0:02:33]} 40. Qe8 {[%emt 0:00:00]} 1-0

[Event "Turkish Super League 2019"]
[Site "Konya"]
[Date "2019.07.27"]
[Round "12"]
[White "Kuzubov, Yuriy"]
[Black "Benidze, Davit"]
[Result "1-0"]
[ECO "B07"]
[WhiteElo "2671"]
[BlackElo "2469"]
[Annotator "ChessBase"]
[PlyCount "105"]
[EventDate "2019.07.17"]
[EventType "team-tourn"]
[EventCountry "TUR"]
[SourceTitle "playchess.com"]
[Source "ChessBase"]
[SourceQuality "1"]
[TimeControl "40/5400+30:1800+30"]

1. d4 Nf6 2. Bf4 d6 3. Nc3 g6 4. Qd2 c6 5. e4 Bg7 6. Bh6 Bxh6 7. Qxh6 e5 8. Nf3 Qe7 9. dxe5 dxe5 10. Bc4 b5 11. Bb3 Be6 12. O-O Nbd7 13. h3 Bxb3 14. axb3 b4 15. Na2 Nxe4 16. Nxb4 Qxb4 17. Ra4 Qd6 18. Rxe4 f5 19. Ra4 e4 20. Nd2 Nb6 21. Qg7 Rf8 22. Nxe4 Qe7 23. Nd6+ Kd7 24. Qxe7+ Kxe7 25. Rd4 c5 26. Rdd1 Rfd8 27. Rfe1+ Kf6 28. Nb7 Rxd1 29. Rxd1 Rc8 30. Nd6 Rc6 31. Kf1 a5 32. Nb5 c4 33. bxc4 Nxc4 34. b3 Nb6 35. Rd6+ Rxd6 36. Nxd6 a4 37. Nb5 axb3 38. cxb3 Ke5 39. Ke2 Kd5 40. Nc3+ Kd4 41. Kd2 g5 42. Ne2+ Ke4 43. Ng3+ Ke5 44. Kd3 Nd5 45. Ne2 f4 46. Nd4 Nf6 47. Nf3+ Kf5 {[%emt 1:38:30]} 48. b4 {[%emt 1:48:00]} g4 {[%emt 0:00:30]} 49. hxg4+ {[%emt 0:00:30]} Nxg4 {[%emt 0:00:30]} 50. Ke2 {[%emt 0:00:30]} Nf6 {[%emt 0:00:30]} 51. b5 {[%emt 0:00:30]} Ne4 {[%emt 0:00:30]} 52. b6 {[%emt 0:00:30]} Nc5 {[%emt 0:00:30]} 53. Nd2 {[%emt 0:02:30]} 1-0

[Event "Turkish Super League 2019"]
[Site "Konya"]
[Date "2019.07.27"]
[Round "12"]
[White "Demchenko, Anton"]
[Black "Durarbayli, Vasif"]
[Result "1/2-1/2"]
[ECO "B31"]
[WhiteElo "2665"]
[BlackElo "2637"]
[Annotator "ChessBase"]
[PlyCount "111"]
[EventDate "2019.07.17"]
[EventType "team-tourn"]
[EventCountry "TUR"]
[SourceTitle "playchess.com"]
[Source "ChessBase"]
[SourceQuality "1"]
[TimeControl "40/5400+30:1800+30"]

1. e4 c5 2. Nf3 Nc6 3. Bb5 g6 4. O-O Bg7 5. Nc3 Nh6 6. Re1 O-O 7. h3 f5 8. d3 Nd4 9. Bc4+ e6 10. Nxd4 cxd4 11. Bxh6 Bxh6 12. Nb5 Qb6 13. e5 a6 14. Nd6 Bg5 15. Qf3 Rb8 16. Bb3 Qc5 17. Qg3 Be7 18. Qf4 b5 19. c3 dxc3 20. d4 Qc7 21. Rac1 b4 22. bxc3 bxc3 23. d5 Kg7 24. Qd4 Qb6 25. Qxc3 Kh6 26. Red1 Bh4 27. g3 Bg5 28. Rc2 f4 29. g4 Bh4 30. Rdd2 a5 31. dxe6 dxe6 32. Qc7 Qxc7 33. Rxc7 a4 34. Bxa4 Rb1+ 35. Rd1 Rb2 36. Rxc8 Bxf2+ 37. Kf1 {[%emt 1:46:29]} Rxc8 {[%emt 1:40:26]} 38. Nxc8 {[%emt 0:00:30]} Bg3 {[%emt 0:00:30]} 39. Bc6 {[%emt 0:01:56]} Rf2+ {[%emt 0:05:01]} 40. Kg1 {[%emt 0:00:00]} f3 {[%emt 0:00:00]} 41. Bxf3 {[%emt 0:03:35]} Rxf3 {[%emt 0:02:33]} 42. Kg2 {[%emt 0:00:30]} Ra3 {[%emt 0:00:00]} 43. Nd6 {[%emt 0:00:30]} Bf4 {[%emt 0:05:00]} 44. Nf7+ {[%emt 0:10:48]} Kg7 {[%emt 0:00:00]} 45. Nd8 {[%emt 0:00:00]} Bxe5 {[%emt 0:01:00]} 46. Rd7+ {[%emt 0:00:34]} Kg8 {[%emt 0:00:30]} 47. Nxe6 {[%emt 0:00:03]} Rxa2+ {[%emt 0:02:30]} 48. Kf3 {[%emt 0:00:01]} Rh2 {[%emt 0:01:30]} 49. Ke4 {[%emt 0:02:18]} Bf6 {[%emt 0:00:00]} 50. Nf4 {[%emt 0:00:00]} Rh1 {[%emt 0:00:00]} 51. Rd3 {[%emt 0:01:04]} Bg5 {[%emt 0:01:30]} 52. Ne6 {[%emt 0:01:40]} Re1+ {[%emt 0:03:30]} 53. Kd5 {[%emt 0:00:01]} Be7 {[%emt 0:00:00]} 54. Rf3 {[%emt 0:00:46]} Rd1+ {[%emt 0:00:00]} 55. Ke4 {[%emt 0:00:19]} Re1+ {[%emt 0:00:30]} 56. Kd5 {[%emt 0:00:30]} 1/2-1/2

[Event "Turkish Super League 2019"]
[Site "Konya"]
[Date "2019.07.27"]
[Round "12"]
[White "Alekseenko, Kirill"]
[Black "Sanal, Vahap"]
[Result "1-0"]
[ECO "C45"]
[WhiteElo "2650"]
[BlackElo "2520"]
[Annotator "ChessBase"]
[PlyCount "71"]
[EventDate "2019.07.17"]
[EventType "team-tourn"]
[EventCountry "TUR"]
[SourceTitle "playchess.com"]
[Source "ChessBase"]
[SourceQuality "1"]
[TimeControl "40/5400+30:1800+30"]

1. e4 e5 2. Nf3 Nc6 3. d4 exd4 4. Nxd4 Qf6 5. Nf3 Bb4+ 6. Nbd2 Nge7 7. Be2 Ng6 8. c3 Bc5 9. Nb3 Bb6 10. Bg5 Qe6 11. Qc2 h6 12. Bd2 O-O 13. O-O d5 14. Bd3 dxe4 15. Bxe4 f5 16. Bd3 Nce5 17. Nxe5 Nxe5 18. Rae1 f4 19. Nd4 Bxd4 20. cxd4 f3 21. Rxe5 Qg4 22. Bh7+ Kh8 23. Qg6 Qxg2+ 24. Qxg2 fxg2 25. Rc1 Kxh7 26. Rxc7 Bf5 27. Rxb7 Rae8 28. Ree7 {[%emt 1:18:00]} Rxe7 {[%emt 1:16:00]} 29. Rxe7 {[%emt 0:00:30]} Bb1 {[%emt 0:00:00]} 30. d5 {[%emt 0:05:30]} Rd8 {[%emt 0:05:00]} 31. Bc3 {[%emt 0:01:30]} Kg6 {[%emt 0:00:30]} 32. Rxg7+ {[%emt 0:00:50]} Kh5 {[%emt 0:00:00]} 33. Rxa7 {[%emt 0:02:07]} Be4 {[%emt 0:00:00]} 34. Ra4 {[%emt 0:00:00]} Bxd5 {[%emt 0:01:30]} 35. Rd4 {[%emt 0:00:12]} Kg6 {[%emt 0:00:30]} 36. f3 {[%emt 0:00:41]} 1-0

[Event "Turkish Super League 2019"]
[Site "Konya"]
[Date "2019.07.27"]
[Round "12"]
[White "Kravtsiv, Martyn"]
[Black "Annaberdiev, Meilis"]
[Result "1-0"]
[ECO "C30"]
[WhiteElo "2628"]
[BlackElo "2515"]
[Annotator "ChessBase"]
[PlyCount "107"]
[EventDate "2019.07.17"]
[EventType "team-tourn"]
[EventCountry "TUR"]
[SourceTitle "playchess.com"]
[Source "ChessBase"]
[SourceQuality "1"]
[TimeControl "40/5400+30:1800+30"]

1. e4 e5 2. Bc4 Nf6 3. d3 Nc6 4. Nc3 Bc5 5. f4 d6 6. Nf3 a6 7. Nd5 h6 8. c3 Ba7 9. Rf1 exf4 10. Bxf4 Be6 11. Nxf6+ Qxf6 12. Bxe6 Qxe6 13. Qb3 O-O-O 14. Qxe6+ fxe6 15. Ke2 Rhf8 16. Bg3 Ne7 17. d4 Rf7 18. h4 Ng6 19. Nd2 Rdf8 20. Rxf7 Rxf7 21. Rf1 Rxf1 22. Nxf1 h5 23. Ne3 Kd7 24. Kf3 b5 25. Nc2 Nh8 26. Nb4 a5 27. Nd3 g6 28. Bf2 Ke7 29. Nf4 c5 30. dxc5 Bxc5 31. Bxc5 dxc5 32. e5 Kd7 33. Ke4 a4 34. a3 Ke7 35. Ke3 Kd7 36. Kd3 {[%emt 1:42:08]} Ke7 {[%emt 1:45:45]} 37. c4 {[%emt 0:00:30]} b4 {[%emt 0:00:30]} 38. Ke3 {[%emt 0:00:30]} Kd7 {[%emt 0:00:30]} 39. Ke4 {[%emt 0:00:30]} Nf7 {[%emt 0:00:00]} 40. Nxg6 {[%emt 0:02:11]} Nh6 {[%emt 0:00:26]} 41. Nf4 {[%emt 0:00:41]} Ng4 {[%emt 0:11:19]} 42. Nd3 {[%emt 0:10:30]} Kc6 {[%emt 0:00:30]} 43. axb4 {[%emt 0:13:20]} cxb4 {[%emt 0:00:30]} 44. Kd4 {[%emt 0:00:00]} b3 {[%emt 0:00:30]} 45. Kc3 {[%emt 0:00:47]} Ne3 {[%emt 0:00:30]} 46. g3 {[%emt 0:00:06]} Nf1 {[%emt 0:14:37]} 47. Kb4 {[%emt 0:00:10]} Nd2 {[%emt 0:04:06]} 48. Kxa4 {[%emt 0:05:21]} Nxc4 {[%emt 0:00:32]} 49. Kb4 {[%emt 0:00:21]} Nxb2 {[%emt 0:01:29]} 50. Nxb2 {[%emt 0:00:38]} Kd5 {[%emt 0:00:03]} 51. Kxb3 {[%emt 0:00:18]} Ke4 {[%emt 0:02:36]} 52. Kc4 {[%emt 0:00:43]} Kf3 {[%emt 0:01:43]} 53. Nd3 {[%emt 0:00:30]} Kxg3 {[%emt 0:00:00]} 54. Kc5 {[%emt 0:00:17]} 1-0